[Event "44th Chess Olympiad Open 2022"]
[Site "Chennai"]
[Date "2022.08.09"]
[Round "11.5"]
[White "Schitco, Ivan"]
[Black "Adams, Michael"]
[Result "1/2-1/2"]
[ECO "E04"]
[WhiteElo "2490"]
[BlackElo "2696"]
[Annotator "TA"]
[PlyCount "111"]
[EventDate "2022.07.29"]
[EventType "team-tourn"]
[EventCountry "IND"]
[SourceTitle "playchess.com"]
[Source "ChessBase"]
[SourceQuality "1"]
[WhiteTeam "Moldova"]
[BlackTeam "England"]
[WhiteTeamCountry "MDA"]
[BlackTeamCountry "ENG"]
[TimeControl "40/5400+30:1800+30"]

{[%evp 11,111,33,35,0,6,6,11,1,8,3,28,35,41,33,31,28,39,43,45,31,29,22,36,16,30,6,58,58,47,50,76,75,75,83,78,81,85,74,79,72,74,0,12,0,72,67,95,96,96,19,96,96,90,86,101,85,131,8,8,8,22,22,19,0,8,0,48,45,65,8,15,37,37,52,93,8,16,16,25,47,54,0,0,0,15,15,15,0,8,15,15,8,15,15,15,15,15,15,15,0,15,0]} 1. d4 {[%emt 0:00:03]} Nf6 {[%emt 0:00:07]} 2. c4 {[%emt 0:00:08]} e6 {[%emt 0:00:04]} 3. g3 {[%emt 0:00:11]} d5 {[%emt 0:00:13]} 4. Bg2 {[%emt 0:00:14]} dxc4 {[%emt 0:01:31]} 5. Nf3 {[%emt 0:00:22]} a6 {[%emt 0:01:01]} 6. O-O {[%emt 0:00:24]} Nc6 {[%emt 0:00:00]} 7. Nbd2 {[%emt 0:10:28] E04: Open Catalan: 5 Nf3.} (7. e3 {looks sharper.} Bd7 8. Qe2 Bd6 9. Qxc4 O-O 10. Rd1) 7... Nxd4 {[%emt 0:10:48]} (7... b5 {is interesting.} 8. Ne5 Nxe5 9. Bxa8 Qxd4 10. Ne4 Qa7) 8. Nxc4 {[%emt 0:06:19]} Nxf3+ {[%emt 0:09:44]} 9. Bxf3 {[%emt 0:00:00]} Qxd1 {[%emt 0:04:53]} 10. Rxd1 {[%emt 0:00:00]} Nd5 {[%emt 0:00:05]} 11. e4 {[%emt 0:00:00]} ({Much worse is} 11. Bxd5 exd5 12. Rxd5 Be6 $17) 11... Nb6 {[%emt 0:00:07]} 12. Nxb6 {[%emt 0:00:00]} cxb6 {[%emt 0:00:02]} 13. e5 {[%emt 0:00:00] [#]} Bd7 $146 {[%emt 0:21:04]} ({Predecessor:} 13... Bc5 14. Be3 Bxe3 15. fxe3 Bd7 16. Rd6 Bc6 17. Bxc6+ bxc6 18. Rc1 O-O 19. Rcxc6 b5 20. Rxa6 {½-½ (31) Harika,D (2518)-Dzagnidze,N (2515) Saint Louis 2020}) 14. Be3 {[%emt 0:00:00]} Bc5 $1 {[%emt 0:02:11]} 15. Bxc5 {[%emt 0:15:15]} bxc5 {[%emt 0:00:01]} 16. Rd6 {[%emt 0:10:45]} Ke7 {[%emt 0:02:59]} 17. Rad1 {[%emt 0:06:25]} Bb5 {[%emt 0:02:38]} 18. b3 {[%emt 0:20:04]} Rad8 {[%emt 0:14:25]} (18... Rhd8 $11) 19. Bxb7 $14 {[%emt 0:00:00]} Rxd6 {[%emt 0:01:13]} 20. Rxd6 {[%emt 0:00:00][%mdl 4096] Endgame KRB-KRB} a5 {[%emt 0:00:05]} 21. Bc6 $1 {[%emt 0:02:24] White is more active.} Rb8 {[%emt 0:00:52]} 22. a4 $1 {[%emt 0:04:20]} Be2 {[%emt 0:05:39]} 23. Rd7+ {[%emt 0:09:02]} Kf8 {[%emt 0:00:01]} 24. f4 $1 {[%emt 0:04:33]} Rc8 {[%emt 0:06:45] [#]} (24... Rxb3 $2 25. Rd8+ Ke7 26. Re8#) 25. Bb7 {[%emt 0:03:43]} Rb8 {[%emt 0:00:02]} 26. Bc6 {[%emt 0:01:28]} (26. Kf2 $16 Bh5 27. Bc6) 26... Rc8 $1 $11 {[%emt 0:00:03]} (26... Rxb3 $2 {gets mated.} 27. Rd8+ Ke7 28. Re8#) 27. Bb7 {[%emt 0:00:26]} (27. Rd6 $11) 27... Rb8 $16 {[%emt 0:00:01]} 28. Kf2 {[%emt 0:00:42]} Bd1 {[%emt 0:01:53]} 29. Rxd1 {[%emt 0:00:06]} Rxb7 {[%emt 0:00:01] KR-KR} 30. Rd8+ {[%emt 0:00:09]} Ke7 {[%emt 0:00:09]} 31. Rc8 {[%emt 0:00:05]} Rxb3 {[%emt 0:00:12]} 32. Rxc5 {[%emt 0:00:05]} Rb2+ {[%emt 0:03:12]} 33. Kg1 {[%emt 0:03:17]} h6 {[%emt 0:00:00]} (33... Rb1+ $142 34. Kg2 Kd7 35. Rxa5 Rb2+ 36. Kg1 Kc6) 34. h4 {[%emt 0:02:34]} (34. Rxa5 $16 {And now Ra7+ would win.} Rb1+ 35. Kg2) 34... Rb1+ {[%emt 0:04:41]} 35. Kg2 {[%emt 0:00:10]} Rb2+ {[%emt 0:00:02]} 36. Kf3 {[%emt 0:01:13]} Rb3+ {[%emt 0:01:01]} 37. Kg2 {[%emt 0:00:42]} Rb2+ {[%emt 0:00:01]} 38. Kf3 {[%emt 0:00:09]} Rb3+ {[%emt 0:00:01]} 39. Kg4 {[%emt 0:00:10]} h5+ {[%emt 0:03:30]} 40. Kxh5 {[%emt 0:03:06]} (40. Kh3 $1 $14) 40... Rxg3 $11 {[%emt 0:00:00]} 41. Rxa5 {[%emt 0:30:25] aiming for Ra7+.} f5 $1 {[%emt 0:33:31]} 42. exf6+ {[%emt 0:00:00]} Kxf6 {[%emt 0:00:00] [#]} 43. Rg5 {[%emt 0:00:00]} ({Better is} 43. Ra8 $1 $16) 43... Ra3 {[%emt 0:00:00]} 44. a5 {[%emt 0:00:00]} Kf7 {[%emt 0:00:00]} 45. Kg4 {[%emt 0:00:00]} g6 {[%emt 0:00:00]} 46. h5 {[%emt 0:00:00]} ({White should try} 46. Re5 $14) 46... gxh5+ {[%emt 0:00:00] The position is equal.} 47. Rxh5 {[%emt 0:00:00]} Kf6 {[%emt 0:00:00]} 48. Rh6+ $1 {[%emt 0:00:00]} Kg7 {[%emt 0:00:00]} 49. Rh5 {[%emt 0:00:00]} Kf6 {[%emt 0:00:00]} 50. Rb5 {[%emt 0:00:00]} Kg6 {[%emt 0:00:00]} 51. Rb6 {[%emt 0:00:00]} Rxa5 {[%emt 0:00:00]} 52. Rxe6+ {[%emt 0:00:00]} Kf7 {[%emt 0:00:00]} 53. Rb6 {[%emt 0:00:00]} Rc5 {[%emt 0:00:00]} 54. Rb7+ {[%emt 0:00:00]} Kf6 {[%emt 0:00:00]} 55. Rb6+ {[%emt 0:00:00]} Kf7 {[%emt 0:00:00]} 56. Rb7+ {[%emt 0:00:00] Weighted Error Value: White=0.16 (very precise) /Black=0.06 (flawless)} 1/2-1/2

[Event "44th Chess Olympiad Open 2022"]
[Site "Chennai"]
[Date "2022.08.09"]
[Round "11.5"]
[White "Baltag, Iulian"]
[Black "Jones, Gawain C B"]
[Result "1/2-1/2"]
[ECO "C68"]
[WhiteElo "2405"]
[BlackElo "2652"]
[Annotator "TA"]
[PlyCount "69"]
[EventDate "2022.07.29"]
[EventType "team-tourn"]
[EventCountry "IND"]
[SourceTitle "playchess.com"]
[Source "ChessBase"]
[SourceQuality "1"]
[WhiteTeam "Moldova"]
[BlackTeam "England"]
[WhiteTeamCountry "MDA"]
[BlackTeamCountry "ENG"]
[TimeControl "40/5400+30:1800+30"]

{[%evp 9,69,25,25,23,22,17,20,31,25,21,11,11,22,22,23,21,39,27,39,16,25,8,12,2,9,2,8,9,58,45,60,71,89,83,86,89,173,99,173,162,164,189,165,153,143,134,121,124,183,143,132,102,102,102,88,89,91,0,94,0,90,0]} 1. e4 {[%emt 0:00:08]} e5 {[%emt 0:00:28]} 2. Nf3 {[%emt 0:00:12]} Nc6 {[%emt 0:00:05]} 3. Bb5 {[%emt 0:00:25]} a6 {[%emt 0:00:06]} 4. Bxc6 {[%emt 0:00:41]} dxc6 {[%emt 0:00:06]} 5. O-O {[%emt 0:00:09]} Qf6 {[%emt 0:08:43]} 6. d4 {[%emt 0:00:41] C68: Ruy Lopez: Exchange Variation, sidelines.} exd4 {[%emt 0:00:08]} 7. Bg5 {[%emt 0:00:10]} Qd6 {[%emt 0:00:53]} 8. Nxd4 {[%emt 0:00:48] The position is equal.} Be7 $1 {[%emt 0:00:23] The main line 8...Be7 scores better than 8...Bd7.} 9. Bxe7 {[%emt 0:00:44]} Nxe7 {[%emt 0:00:15]} 10. Nc3 {[%emt 0:00:40]} O-O {[%emt 0:01:49]} 11. Nb3 {[%emt 0:00:07]} Qxd1 {[%emt 0:10:25]} (11... Qf4 {feels hotter.} 12. Nc5 Bg4 13. Qc1 Qxc1 14. Raxc1 b6) 12. Raxd1 {[%emt 0:00:16] [#]} a5 $146 {[%emt 0:00:06]} ({Predecessor:} 12... b6 13. Rd2 c5 14. Rfd1 Be6 15. f4 f5 16. e5 Kf7 17. Kf2 Rg8 18. h4 h6 {0-1 (54) Ibarra Jerez,J (2475)-Sokolov,I (2666) Villarrobledo 2007}) 13. a4 {[%emt 0:00:45]} f6 {[%emt 0:02:22]} 14. Rd2 {[%emt 0:03:50]} g5 {[%emt 0:06:45]} 15. Rfd1 {[%emt 0:01:43]} Ng6 {[%emt 0:02:56]} 16. Nd4 {[%emt 0:00:20]} h5 {[%emt 0:05:47]} 17. b3 {[%emt 0:02:46]} Kf7 {[%emt 0:02:56]} 18. f3 {[%emt 0:02:21]} g4 {[%emt 0:06:28]} (18... h4 $11 {is superior.}) 19. Kf2 {[%emt 0:05:33]} gxf3 {[%emt 0:11:30]} 20. gxf3 {[%emt 0:00:00]} Bh3 {[%emt 0:02:39]} 21. Nf5 {[%emt 0:01:10]} Ne5 {[%emt 0:03:24] Against Rd7+} 22. Nh4 {[%emt 0:05:50] Pair of Knights!} Be6 {[%emt 0:03:20]} (22... Rg8 $16) 23. Ne2 {[%emt 0:02:30]} (23. f4 $18) 23... Rae8 {[%emt 0:01:51]} (23... Rg8 $16 {is a better defense.}) 24. Nd4 $1 $18 {[%emt 0:00:00]} Bc8 {[%emt 0:00:25] [#]} 25. Ndf5 $1 {[%emt 0:00:00] Rg1 is the strong threat.} Rh8 {[%emt 0:01:33]} 26. Rg1 {[%emt 0:00:59] aiming for Rg7+.} Rh7 {[%emt 0:01:38] [#] Prevents Rg7+.} 27. Ke3 $1 {[%emt 0:02:08]} Be6 {[%emt 0:05:01]} 28. Rdg2 {[%emt 0:05:27]} Reh8 {[%emt 0:02:50]} (28... Kf8 $16 29. Rg7 Rxg7 30. Rxg7 (30. Nxg7 Ng4+ 31. fxg4 Kxg7 $16) 30... Bf7) 29. Rg7+ {[%emt 0:01:24]} Kf8 {[%emt 0:01:04]} 30. Ng6+ {[%emt 0:07:40]} Nxg6 {[%emt 0:00:07]} 31. R7xg6 {[%emt 0:00:08]} Kf7 {[%emt 0:00:32]} 32. Rg7+ {[%emt 0:04:03]} Kf8 {[%emt 0:00:10] And now ...Bxf5 would win.} 33. R7g6 {[%emt 0:02:26] White is much more active. The black rooks are badly placed.} Kf7 {[%emt 0:00:07]} 34. Rg7+ {[%emt 0:00:12]} Kf8 $1 {[%emt 0:00:06] White must now prevent ...Bxf5.} 35. R7g6 {[%emt 0:00:07] Weighted Error Value: White=0.15 (very precise) /Black=0.09 (flawless)} ({White should try} 35. R7g2 $16) 1/2-1/2

[Event "44th Chess Olympiad Open 2022"]
[Site "Chennai"]
[Date "2022.08.09"]
[Round "11.6"]
[White "Mamedyarov, Shakhriyar"]
[Black "Indjic, Aleksandar"]
[Result "1-0"]
[ECO "A34"]
[WhiteElo "2759"]
[BlackElo "2620"]
[Annotator "TA"]
[PlyCount "63"]
[EventDate "2022.07.29"]
[EventType "team-tourn"]
[EventCountry "IND"]
[SourceTitle "playchess.com"]
[Source "ChessBase"]
[SourceQuality "1"]
[WhiteTeam "Azerbaijan"]
[BlackTeam "Serbia"]
[WhiteTeamCountry "AZE"]
[BlackTeamCountry "SRB"]
[TimeControl "40/5400+30:1800+30"]

{[%evp 9,63,8,17,18,20,22,21,-7,66,11,188,154,179,177,291,259,257,282,258,242,297,294,461,454,434,435,504,514,500,503,590,581,570,567,533,538,598,590,590,580,828,820,835,822,831,825,736,458,460,471,465,433,429,337,336,321]} 1. c4 {[%emt 0:02:43]} c5 {[%emt 0:01:04]} 2. Nf3 {[%emt 0:00:25]} Nf6 {[%emt 0:00:32]} 3. Nc3 {[%emt 0:00:21]} Nc6 {[%emt 0:00:17]} 4. e3 {[%emt 0:00:28]} a6 {[%emt 0:01:20]} 5. b3 {[%emt 0:02:44]} e6 {[%emt 0:09:15]} 6. Bb2 $1 {[%emt 0:00:13] A34: Symmetrical English: 2 Nc3, lines with ...d5.} d5 {[%emt 0:00:21]} 7. cxd5 {[%emt 0:00:07]} exd5 {[%emt 0:00:52]} 8. Rc1 $5 {[%emt 0:01:18][%mdl 4] [#] The position is equal. Leaves trodden paths.} d4 $146 {[%emt 0:16:51]} (8... b5 $11) ({Predecessor:} 8... Bg4 9. Na4 Nd7 10. Be2 b5 11. Nc3 Nb6 12. a4 b4 13. Nb1 Be6 14. O-O Na5 {½-½ (74) Anton Guijarro,D (2694)-Abdusattorov,N (2635) Wijk aan Zee 2020}) 9. Na4 $14 {[%emt 0:00:56]} Ne4 $2 {[%emt 0:05:58]} (9... Bg4 $11 {and Black stays safe.}) 10. Bd3 {[%emt 0:05:20]} f5 {[%emt 0:05:11]} 11. O-O {[%emt 0:12:15][%cal Bh1f1,Bf1e1,Be1e6][%mdl 32] Hoping for exd4.} Bd6 {[%emt 0:07:09]} (11... Be7 $142) 12. exd4 $18 {[%emt 0:06:07]} cxd4 {[%emt 0:05:18] [#]} 13. Rxc6 $1 {[%emt 0:02:56][%mdl 512]} bxc6 {[%emt 0:00:18] [#]} 14. Bc4 {[%emt 0:00:05]} c5 {[%emt 0:16:12]} 15. d3 {[%emt 0:02:07]} Nf6 {[%emt 0:00:22]} (15... Nc3 {was worth a try.} 16. Nxc3 dxc3) 16. Re1+ {[%emt 0:02:39]} Kf8 {[%emt 0:00:06]} 17. b4 {[%emt 0:04:52]} cxb4 {[%emt 0:05:15]} 18. Bxd4 {[%emt 0:00:32]} Rb8 {[%emt 0:00:22] Inhibits Nb6.} 19. Nc5 {[%emt 0:11:11] Inhibits Rb7. aiming for Ng5.} Qc7 {[%emt 0:10:46]} 20. Ne6+ {[%emt 0:01:14]} Bxe6 {[%emt 0:00:07]} 21. Rxe6 {[%emt 0:00:04]} Re8 {[%emt 0:02:04]} 22. Ng5 {[%emt 0:00:10][%cal Bf3g5,Bg5e6,Be6g7,Bg7f5][%mdl 32]} h6 {[%emt 0:03:18]} 23. Rxe8+ {[%emt 0:01:09]} Kxe8 {[%emt 0:00:06] [#]} 24. Ne6 $1 {[%emt 0:00:19]} Qb7 {[%emt 0:07:53]} 25. Qa4+ {[%emt 0:02:14]} Ke7 {[%emt 0:00:20]} 26. Nxg7 {[%emt 0:00:18]} Qc8 {[%emt 0:00:08]} 27. Qa5 {[%emt 0:00:26]} Re8 {[%emt 0:01:36]} 28. Kf1 {[%emt 0:01:46]} Ne4 {[%emt 0:00:45]} 29. Nxf5+ {[%emt 0:02:59]} Kd7 {[%emt 0:00:04]} 30. Qa4+ {[%emt 0:00:15]} Kd8 {[%emt 0:00:07]} 31. Bb6+ {[%emt 0:00:14] This bishop pair is nice.} Bc7 {[%emt 0:00:09] ( -> ...Nd2+)} 32. dxe4 {[%emt 0:00:06] Black got outplayed after the opening.  Weighted Error Value: White=0.16 (very precise) /Black=0.47} 1-0

[Event "44th Chess Olympiad Open 2022"]
[Site "Chennai"]
[Date "2022.08.09"]
[Round "11.6"]
[White "Guseinov, Gadir"]
[Black "Markus, Robert"]
[Result "1/2-1/2"]
[ECO "C43"]
[WhiteElo "2668"]
[BlackElo "2616"]
[Annotator "TA"]
[PlyCount "62"]
[EventDate "2022.07.29"]
[EventType "team-tourn"]
[EventCountry "IND"]
[SourceTitle "playchess.com"]
[Source "ChessBase"]
[SourceQuality "1"]
[WhiteTeam "Azerbaijan"]
[BlackTeam "Serbia"]
[WhiteTeamCountry "AZE"]
[BlackTeamCountry "SRB"]
[TimeControl "40/5400+30:1800+30"]

{[%evp 9,62,7,12,7,8,8,15,14,11,9,22,20,32,0,0,0,10,9,17,12,54,57,50,47,70,63,80,51,50,27,27,27,29,27,30,23,27,0,6,0,0,0,0,0,0,0,0,0,0,0,0,0,0,0,0]} 1. e4 {[%emt 0:02:07]} e5 {[%emt 0:00:07]} 2. Nf3 {[%emt 0:00:06]} Nf6 {[%emt 0:00:05]} 3. d4 {[%emt 0:00:33]} Nxe4 {[%emt 0:00:07]} 4. dxe5 {[%emt 0:01:05]} d5 {[%emt 0:00:06]} 5. Nbd2 {[%emt 0:00:14]} Nxd2 {[%emt 0:00:54]} 6. Bxd2 {[%emt 0:00:08] C43: Petroff Defence: 3 d4.} Be7 {[%emt 0:00:05]} 7. Bd3 {[%emt 0:00:29]} c5 {[%emt 0:01:01]} 8. c3 {[%emt 0:00:09]} Nc6 {[%emt 0:00:06]} 9. O-O {[%emt 0:06:28]} O-O {[%emt 0:04:03]} 10. Re1 {[%emt 0:04:35]} Be6 {[%emt 0:08:27]} 11. Qc2 {[%emt 0:24:40]} h6 {[%emt 0:12:47] [#]} 12. Rad1 $146 {[%emt 0:00:20]} ({Predecessor:} 12. Qc1 Qc8 13. h3 Bf5 14. Bf1 Qe6 15. Bf4 Rad8 16. Bg3 d4 17. cxd4 Nxd4 18. Nxd4 Rxd4 {½-½ (24) Karpatchev,A (2433)-Panagiotakos,N (2102) Heraklion 2018}) 12... Qd7 {[%emt 0:04:07]} 13. Bf4 {[%emt 0:01:18][%cal Bd2f4,Bf4g3,Bg3h4][%mdl 32]} Rfd8 {[%emt 0:06:40]} 14. Bg3 {[%emt 0:03:59]} f5 {[%emt 0:14:23]} 15. exf6 $1 {[%emt 0:01:49]} Bxf6 {[%emt 0:00:05]} 16. Nh4 {[%emt 0:33:02]} Bxh4 {[%emt 0:06:33]} 17. Bxh4 {[%emt 0:00:05]} Re8 {[%emt 0:00:06]} 18. h3 {[%emt 0:07:16]} Bf7 {[%emt 0:03:03]} 19. Qd2 {[%emt 0:01:25]} d4 {[%emt 0:03:59]} 20. Bb1 {[%emt 0:04:47]} Rxe1+ {[%emt 0:06:11]} 21. Rxe1 {[%emt 0:00:01]} Re8 {[%emt 0:00:09]} 22. Rxe8+ {[%emt 0:01:44]} Qxe8 {[%emt 0:02:25]} 23. f4 {[%emt 0:00:57]} Qe6 {[%emt 0:08:48] The position is equal.} 24. Bf2 {[%emt 0:00:38]} Bg6 {[%emt 0:01:46]} 25. Bxg6 {[%emt 0:00:30]} Qxg6 {[%emt 0:00:05]} 26. cxd4 {[%emt 0:00:08]} Nxd4 {[%emt 0:00:32]} 27. Bxd4 {[%emt 0:00:13]} cxd4 {[%emt 0:00:05]} 28. Qxd4 $11 {[%emt 0:00:22] KQ-KQ} Qb1+ {[%emt 0:00:06]} 29. Kh2 {[%emt 0:00:05]} Qxa2 {[%emt 0:00:05]} 30. Qd8+ {[%emt 0:02:34]} Kh7 {[%emt 0:00:05]} 31. Qd3+ {[%emt 0:00:21]} Kg8 {[%emt 0:00:32] Weighted Error Value: White=0.06 (flawless) /Black=0.06 (flawless)} 1/2-1/2

[Event "44th Chess Olympiad Open 2022"]
[Site "Chennai"]
[Date "2022.08.09"]
[Round "11.6"]
[White "Ivic, Velimir"]
[Black "Mamedov, Rauf"]
[Result "1/2-1/2"]
[ECO "B31"]
[WhiteElo "2581"]
[BlackElo "2656"]
[Annotator "TA"]
[PlyCount "117"]
[EventDate "2022.07.29"]
[EventType "team-tourn"]
[EventCountry "IND"]
[SourceTitle "playchess.com"]
[Source "ChessBase"]
[SourceQuality "1"]
[WhiteTeam "Serbia"]
[BlackTeam "Azerbaijan"]
[WhiteTeamCountry "SRB"]
[BlackTeamCountry "AZE"]
[TimeControl "40/5400+30:1800+30"]

{[%evp 10,117,10,18,41,-8,29,15,25,32,38,44,47,55,52,25,29,12,39,32,70,51,61,52,66,63,67,60,36,54,72,62,83,27,91,92,109,101,102,104,111,110,117,108,105,116,112,95,102,22,27,0,4,0,0,0,4,10,15,15,49,50,50,32,32,30,34,30,30,32,50,32,35,9,10,9,10,11,16,17,17,12,12,13,13,13,18,12,14,0,0,0,0,0,0,0,0,0,0,0,0,0,0,0,0,0,0,0,0,0]} 1. e4 {[%emt 0:00:07]} c5 {[%emt 0:02:14]} 2. Nf3 {[%emt 0:00:09]} Nc6 {[%emt 0:00:04]} 3. Bb5 {[%emt 0:00:22]} g6 {[%emt 0:00:02]} 4. Bxc6 {[%emt 0:00:08]} bxc6 {[%emt 0:00:06]} 5. O-O {[%emt 0:00:22]} Bg7 {[%emt 0:02:21]} 6. Re1 {[%emt 0:00:36]} Qc7 {[%emt 0:04:51] B31: Sicilian: 2...Nc6 3 Bb5 g6.} 7. d3 {[%emt 0:01:18]} (7. e5 $14 {is superior.}) 7... d6 {[%emt 0:03:11]} 8. e5 {[%emt 0:00:35]} dxe5 {[%emt 0:05:55][%cal Oc5c4]} 9. Na3 {[%emt 0:00:18]} f6 {[%emt 0:12:54]} 10. Be3 {[%emt 0:01:13] [#]} Nh6 $146 {[%emt 0:03:34]} ({Predecessor:} 10... Rb8 11. Nc4 Be6 12. Nfd2 Nh6 13. Bxc5 Nf5 14. Qe2 Bd5 15. c3 O-O 16. b4 Rfd8 {1-0 (26) Borisovs,L (1994)-Roberts,N (1894) FICGS email 2020}) 11. Bxc5 {[%emt 0:00:41]} Nf7 {[%emt 0:04:47]} 12. Nc4 {[%emt 0:09:38]} O-O {[%emt 0:02:50]} 13. b4 {[%emt 0:06:59]} Ba6 {[%emt 0:14:59]} 14. Nfd2 {[%emt 0:07:02][%cal Of2f4]} f5 {[%emt 0:04:19][%cal Oe5e4]} 15. Qc1 {[%emt 0:08:42] White is more active.} e4 {[%emt 0:09:04]} 16. Rb1 {[%emt 0:02:29]} Nd6 {[%emt 0:02:02]} 17. Qa3 {[%emt 0:05:30]} Bxc4 {[%emt 0:03:59]} 18. Nxc4 {[%emt 0:00:19]} Kh8 {[%emt 0:01:03]} 19. Qb3 {[%emt 0:15:40]} Rad8 {[%emt 0:05:11]} 20. a4 {[%emt 0:02:36]} Rfe8 {[%emt 0:02:34]} 21. Nd2 {[%emt 0:05:20]} ({Better is} 21. Na5 $16) 21... Nb7 {[%emt 0:03:55]} (21... Nc8 $11) 22. Bxa7 $16 {[%emt 0:02:37]} Ra8 {[%emt 0:00:49]} 23. Be3 {[%emt 0:01:17] Black must now prevent a5.} f4 {[%emt 0:00:37]} 24. Bc5 {[%emt 0:00:50]} (24. Nxe4 $6 fxe3 25. Rxe3 Qe5 $11) 24... Nxc5 {[%emt 0:00:55]} 25. bxc5 {[%emt 0:00:05]} e3 {[%emt 0:02:22]} 26. fxe3 {[%emt 0:01:36]} fxe3 {[%emt 0:00:04]} 27. Nf3 {[%emt 0:00:08]} (27. Rxe3 Bd4 28. Qe6 Bxc5 $17) 27... Qf4 {[%emt 0:00:29] [#]} 28. Qe6 $1 {[%emt 0:04:49][%csl LRc6,LRe3]} Qxa4 {[%emt 0:00:23]} 29. Ne5 {[%emt 0:12:30]} ({Of course not} 29. c4 Qc2 30. Ng5 (30. Qxe3 Ra2 $11) 30... Bc3 31. Qxe3 (31. Qh3 h5 $11) 31... Bxe1 32. Qe5+ Kg8 33. Qe6+ Kh8 34. Qe5+ Kg8 35. Qe6+ Kh8 36. Qe5+ $11) (29. Rb3 $16) 29... Bf6 $1 $11 {[%emt 0:01:02]} 30. Rbc1 {[%emt 0:09:53]} (30. Nxc6 $2 Ra6 31. Rb6 {[#]} Qxc2 $1 $19) (30. c4 $5 {[%cal Re1e3]}) 30... Qd4 $132 {[%emt 0:03:29][%csl LRc5,LRe5][%mdl 2048] Black has counterplay} 31. Nf3 {[%emt 0:00:23]} Qxc5 {[%emt 0:00:05]} 32. Qxe3 {[%emt 0:00:39]} Qxe3+ {[%emt 0:00:16]} 33. Rxe3 {[%emt 0:00:02]} Ra2 {[%emt 0:00:13]} 34. Re4 {[%emt 0:01:38]} Rd8 {[%emt 0:03:18]} 35. Rc4 {[%emt 0:00:18]} Rd6 {[%emt 0:00:11]} 36. Re1 {[%emt 0:00:56]} Kg7 {[%emt 0:00:24]} 37. g4 {[%emt 0:00:23] And now g5 would win.} h6 {[%emt 0:00:31] Against g5} 38. h4 {[%emt 0:00:45] Hoping for g5.} Ra5 {[%emt 0:02:27] Inhibits g5.} 39. Kg2 {[%emt 0:00:21]} Kf7 {[%emt 0:00:26]} 40. Kg3 {[%emt 0:00:37]} Ke8 {[%emt 0:00:10]} 41. Rb1 {[%emt 0:08:34]} Rb5 {[%emt 0:03:06] The position is equal.} (41... Kd7 {with more complications.} 42. Rb8 g5 43. hxg5 hxg5 44. Rb7+ Kd8) 42. Rbb4 {[%emt 0:00:31]} (42. Rf1 {looks sharper.} Kd7 43. Re1 Rdd5 44. Kf4) 42... Rxb4 {[%emt 0:02:51]} 43. Rxb4 {[%emt 0:00:38][%mdl 4096] Endgame KRB-KRN} Rd5 {[%emt 0:00:48]} 44. Rb8+ {[%emt 0:02:54]} Kf7 {[%emt 0:02:53]} 45. Rc8 {[%emt 0:01:56]} Rd6 {[%emt 0:03:25]} 46. g5 {[%emt 0:01:32]} hxg5 {[%emt 0:00:21]} 47. hxg5 {[%emt 0:00:02]} Bc3 {[%emt 0:00:18]} 48. Ra8 {[%emt 0:04:54]} Rd5 {[%emt 0:01:47]} 49. Ra4 {[%emt 0:00:41]} Be5+ {[%emt 0:02:51]} 50. Kg4 {[%emt 0:04:15] Threatens to win with c4.} Bd6 {[%emt 0:00:44]} 51. Rc4 {[%emt 0:01:54]} c5 {[%emt 0:00:37]} 52. Re4 {[%emt 0:01:40]} Rf5 {[%emt 0:01:36]} 53. c4 {[%emt 0:01:34]} Bc7 {[%emt 0:03:35]} 54. d4 {[%emt 0:00:31]} cxd4 {[%emt 0:06:38]} 55. Nxd4 {[%emt 0:01:34]} Rc5 {[%emt 0:01:00]} 56. Nb3 {[%emt 0:00:46]} Rf5 {[%emt 0:00:38]} 57. Nd4 {[%emt 0:01:59]} Rc5 {[%emt 0:00:06]} 58. Nb3 {[%emt 0:02:43]} Rf5 {[%emt 0:00:07]} 59. Nd4 {[%emt 0:00:39] Weighted Error Value: White=0.08 (flawless) /Black=0.07 (flawless)} 1/2-1/2